bitfinex/quotes_ETHUSD_20251017
["timestamp","ask_amount","ask_price","bid_price","bid_amount"]
[1760697434831,1e-08,3707.1,3707.0,4.42559913]
[1760697435124,1e-08,3707.1,3707.0,14.11140181]
[1760697435329,1e-08,3707.1,3707.0,12.80192582]
[1760697435887,0.21730001,3707.9,3707.8,5.05861709]
[1760697436088,0.68050001,3707.9,3707.8,4.42501709]
[1760697436318,0.68050001,3707.9,3707.8,7.35301709]
[1760697436806,0.2181,3708.5,3707.8,7.35301709]
[1760697436807,0.2181,3708.5,3707.8,3.36661689]
[1760697437109,0.2181,3709.6,3708.4,0.6336]
[1760697437331,0.2181,3708.7,3708.6,4.42443531]
[1760697437550,0.2181,3708.7,3708.6,7.98603531]
[1760697437913,0.2181,3708.7,3708.6,5.62443531]
[1760697437914,0.6813,3708.7,3708.6,5.62443531]
[1760697438155,0.6813,3708.7,3708.6,4.42443531]
[1760697438308,0.2181,3709.6,3709.5,2.6957811]
[1760697438646,0.6,3709.8,3709.7,2.69563576]
[1760697439040,0.6,3709.8,3709.7,7.98423576]
[1760697439236,0.4632,3710.6,3710.2,5.05687249]
[1760697439556,0.2181,3712.0,3710.9,1.728]
[1760697439757,0.4632,3711.9,3711.1,1.728]
[1760697439948,0.4632,3711.9,3711.0,3.39623234]
[1760697439949,0.4632,3711.9,3711.7,2.69412965]
[1760697440108,0.4632,3711.8,3711.3,2.927]
[1760697440310,0.2181,3712.0,3711.6,2.69425584]
[1760697440311,0.4632,3711.7,3711.6,2.69425584]
[1760697440548,0.4632,3711.7,3711.6,1.728]
[1760697440732,0.3632,3711.7,3711.6,1.728]
[1760697440934,0.2181,3712.0,3711.7,1.728]
[1760697441250,0.2181,3712.3,3712.2,2.69382037]
[1760697441641,0.2181,3712.3,3712.1,5.62089245]
[1760697441953,0.2181,3712.3,3712.2,2.69382037]
[1760697442160,0.2181,3712.3,3711.6,0.4655]
[1760697442313,0.2181,3712.3,3711.6,2.926]
[1760697442739,0.2296,3711.7,3711.6,1.728]
[1760697442915,0.5967,3711.7,3711.6,1.728]
[1760697443229,0.5967,3711.7,3711.1,2.69455329]
[1760697443230,0.5967,3711.7,3710.8,2.69477657]
[1760697443439,0.5967,3711.7,3708.9,2.85104645]
[1760697443440,0.3656,3711.6,3710.9,2.925]
[1760697443744,0.2181,3712.3,3711.2,0.6336]
[1760697443904,0.3656,3712.6,3711.2,0.6336]
[1760697443905,0.3656,3712.6,3712.4,2.69362722]
[1760697444110,0.3656,3712.6,3711.8,1.728]
[1760697444111,0.3656,3712.6,3712.5,2.69360269]
[1760697444310,0.2196,3712.7,3712.6,2.69353014]
[1760697444537,0.3642,3712.6,3712.3,1.728]
[1760697444744,0.3642,3712.5,3712.1,0.1344]
[1760697444915,0.2196,3712.7,3712.1,0.1344]
[1760697444916,0.3642,3712.4,3712.1,0.1344]
[1760697445112,0.2196,3712.7,3712.2,2.925]
[1760697445307,0.3642,3713.2,3712.9,2.6933125]
[1760697445508,0.2181,3713.3,3712.8,2.925]
[1760697445707,0.2181,3713.3,3712.9,0.1344]
[1760697445911,0.2196,3713.6,3713.4,2.69288377]
[1760697446136,0.3627,3713.8,3713.2,2.6930949]
[1760697446137,0.3627,3713.8,3713.3,2.69302237]
[1760697446346,0.3627,3713.8,3713.2,2.924]
[1760697446545,0.3627,3713.8,3713.4,2.69289017]
[1760697446852,0.3627,3713.8,3712.4,0.02693675]
[1760697446853,0.3613,3713.7,3711.0,0.7241]
[1760697447035,0.6336,3713.6,3711.0,0.31944691]
[1760697447221,0.3599,3713.5,3711.1,3.1353]
[1760697447412,0.3599,3713.4,3712.0,2.69391483]
[1760697447716,0.2196,3714.0,3711.4,1.728]
[1760697447717,0.3599,3713.3,3712.1,1.99739148]
[1760697447915,0.3599,3713.3,3712.3,1.728]
[1760697448241,0.3599,3713.3,3711.4,17.80394023]
[1760697448242,0.2238,3712.2,3711.2,2.69454623]
[1760697448432,0.2238,3712.2,3710.7,0.4316]
[1760697448433,0.5823,3712.2,3711.3,2.923]
[1760697448638,0.5823,3712.2,3711.2,2.923]
[1760697448839,0.3585,3712.1,3711.2,2.923]
[1760697449171,0.2296,3711.3,3710.0,2.69541093]
[1760697449463,0.3585,3711.2,3710.1,0.02695345]
[1760697449666,0.2296,3711.3,3710.8,2.69478602]
[1760697449869,0.3585,3711.2,3710.1,0.1677]
[1760697450017,0.2196,3710.9,3710.6,2.69496833]
[1760697450213,0.2296,3711.3,3710.7,1.728]
[1760697450417,0.2296,3711.3,3710.1,0.1677]
[1760697450418,0.221,3710.8,3710.1,2.923]
[1760697450613,0.221,3710.8,3709.6,0.1549]
[1760697450815,0.2296,3711.3,3709.7,3.3536]
[1760697451067,0.3472,3711.2,3711.1,0.001]
[1760697451785,0.2296,3711.3,3711.1,0.001]
[1760697451959,0.3472,3711.2,3711.1,0.001]
[1760697452534,0.76993846,3711.2,3711.1,0.001]
[1760697452766,0.3472,3711.2,3711.1,0.001]
[1760697453184,0.2296,3711.3,3711.1,0.001]
[1760697453337,0.3472,3711.8,3711.1,0.001]
[1760697453338,0.2296,3711.4,3711.1,0.001]
[1760697453540,0.3472,3711.2,3711.1,0.001]
[1760697453738,0.2296,3711.4,3711.1,0.001]
[1760697454176,0.571,3712.2,3711.2,2.69454623]
[1760697454391,0.225,3712.5,3711.1,0.72955276]
[1760697454538,0.225,3712.5,3711.2,3.5556]
[1760697454743,0.225,3712.8,3711.5,6.455186]
[1760697454964,0.346,3713.4,3711.9,3.32763809]
[1760697455215,0.567,3713.4,3712.0,3.5556]
[1760697455355,0.567,3713.4,3712.4,1.728]
[1760697455554,0.567,3713.4,3712.5,0.02693602]
[1760697455751,0.002,3713.7,3712.5,0.6336]
[1760697455955,0.002,3713.7,3712.6,1.728]
[1760697456166,0.002,3713.7,3712.7,2.69340508]
[1760697456384,0.002,3713.7,3712.9,2.3616]
[1760697456586,0.002,3713.7,3712.9,1.16196]
[1760697456887,0.002,3713.7,3713.2,3.4610949]
[1760697457178,0.002,3713.7,3713.1,1.728]
[1760697458173,0.002,3713.7,3712.5,0.6336]
[1760697458484,0.4436,3713.2,3712.3,2.921]
[1760697458777,0.61271049,3713.2,3712.2,1.728]
[1760697459007,0.2284,3712.4,3711.1,0.001]
[1760697459218,0.4415,3712.3,3711.1,0.001]
[1760697459574,0.86417274,3712.3,3711.1,0.001]
[1760697460187,2.69403809,3711.9,3711.1,0.001]
[1760697460405,0.86417274,3712.3,3711.1,0.001]
[1760697460606,4.42254623,3711.2,3711.1,0.001]
[1760697460909,2.69444971,3711.4,3708.3,12.043548]
[1760697460910,0.6336,3711.1,3708.3,12.043548]
[1760697461089,0.6336,3711.1,3708.2,0.4316]
[1760697461090,1.728,3710.8,3708.2,0.4316]
[1760697461275,1.728,3710.5,3708.6,1.728]
[1760697461475,0.4415,3710.4,3708.8,1.728]
[1760697461713,0.4415,3710.4,3708.9,2.6961519]
[1760697461913,0.4415,3710.4,3709.1,2.69607182]
[1760697462208,0.04699645,3710.5,3708.6,0.02696435]
[1760697462209,0.04699645,3710.5,3709.2,0.6211]
[1760697462418,0.04699645,3710.5,3710.0,0.1831]
[1760697462576,0.4415,3711.3,3709.5,0.6336]
[1760697462920,0.2296,3711.6,3709.8,3.32909927]
[1760697463220,0.42272023,3712.3,3710.7,2.3616]
[1760697463438,0.42272023,3712.3,3710.9,0.6336]
[1760697463584,0.4403,3712.4,3711.4,2.69435107]
[1760697463780,0.2296,3712.8,3710.5,1.728]
[1760697463781,0.42264632,3712.7,3710.5,1.728]
[1760697463995,0.4502,3712.3,3710.5,0.1728]
[1760697464336,3.32743485,3712.2,3709.8,2.92]
[1760697464490,2.69416827,3711.8,3709.8,2.92]
[1760697464695,0.6699,3711.7,3710.1,2.69533605]
[1760697465014,0.6699,3711.7,3709.7,2.69563477]
[1760697465015,0.42275322,3711.4,3709.7,2.69563477]
[1760697465216,0.42275322,3711.4,3709.7,0.45855635]
[1760697465413,0.42275322,3711.4,3710.4,2.69510252]
[1760697465616,0.4457,3711.3,3710.0,1.728]
[1760697465940,0.4457,3711.3,3709.8,0.25850764]
[1760697466096,0.4457,3711.3,3709.2,0.1895]
[1760697466437,0.4457,3711.3,3709.3,0.4316]
[1760697466603,3.14018203,3711.3,3709.6,1.728]
[1760697466795,0.42280671,3711.0,3709.4,2.69584436]
[1760697466997,0.49269064,3710.9,3709.4,0.4316]
[1760697467191,0.49269064,3710.9,3709.2,0.21645999]
[1760697467192,0.49269064,3710.9,3709.3,1.728]
[1760697467413,0.42282964,3710.7,3708.7,0.4316]
[1760697467625,0.42282964,3710.7,3708.6,2.92]
[1760697467626,0.04699064,3710.9,3709.1,0.6211]
[1760697467827,0.04699064,3710.9,3709.2,1.09215999]
[1760697467992,0.04699064,3710.9,3709.5,1.728]
[1760697468196,0.04699064,3710.9,3709.5,2.6957776]
[1760697468530,0.4457,3710.8,3709.1,0.1895]
[1760697468725,0.4457,3710.8,3709.4,2.6958277]
[1760697469029,0.4457,3710.8,3709.1,0.6211]
[1760697469220,0.42284197,3710.6,3709.5,2.69575859]
[1760697469528,0.42284197,3710.6,3709.2,1.728]
[1760697469746,0.4457,3710.5,3708.7,1.728]
[1760697469900,0.4457,3710.5,3709.4,0.001]
[1760697470292,2.22069705,3710.5,3709.4,0.001]
[1760697470446,0.42289164,3710.3,3709.4,0.001]
[1760697470933,0.4457,3710.2,3709.4,0.001]
[1760697471912,0.42289164,3710.3,3709.4,0.001]
[1760697472410,0.86859164,3710.3,3709.4,0.001]
[1760697473007,0.1758,3709.5,3709.4,0.001]
[1760697473228,0.6206,3709.5,3709.4,0.001]
[1760697473836,2.3486,3709.5,3709.4,0.001]
[1760697474524,0.1758,3709.5,3709.4,0.001]
[1760697474844,0.6206,3709.5,3709.4,0.001]
[1760697475224,2.3486,3709.5,3709.4,0.001]
[1760697475555,0.6206,3709.5,3709.4,0.001]
[1760697476569,0.66760991,3709.5,3709.4,0.001]
[1760697478235,5.72499101,3709.5,3709.4,0.001]
[1760697478539,5.0579626,3708.7,3708.6,0.001]
[1760697478742,0.6336,3708.3,3706.1,0.1895]
[1760697478946,0.6336,3708.1,3706.1,2.88775306]
[1760697479228,0.47022956,3707.8,3706.1,0.1895]
[1760697479536,1.728,3707.5,3705.7,2.69851201]
[1760697479734,2.69716258,3707.6,3705.5,0.4659]
[1760697479735,0.678,3707.4,3705.5,0.4659]
[1760697480248,0.04703084,3707.8,3706.4,2.69798099]
[1760697480565,0.42322993,3707.3,3707.2,2.6974536]
[1760697480748,0.04703084,3707.8,3707.2,0.4659]
[1760697481064,0.42314176,3708.4,3707.1,0.1831]
[1760697481561,0.42314176,3708.4,3707.2,2.1608]
[1760697481762,0.42314176,3708.4,3707.7,2.69703178]
[1760697481993,0.85514176,3708.4,3707.1,0.1831]
[1760697482163,0.2284,3707.8,3706.7,0.1915]
[1760697482462,0.2284,3707.8,3706.7,2.69774513]
[1760697482644,0.6336,3708.5,3706.8,3.13054468]
[1760697482836,0.42314993,3708.0,3706.9,2.69765345]
[1760697483064,0.42314993,3708.0,3707.0,2.6975877]
[1760697483286,0.42314993,3708.0,3707.1,2.88057564]
[1760697483559,0.42234993,3708.0,3707.1,0.1831]
[1760697483927,0.42234993,3708.0,3707.2,0.1831]
[1760697484266,0.2184,3708.8,3707.8,2.6970061]
[1760697484464,2.87159254,3709.5,3707.8,2.69701709]
[1760697484465,0.42309749,3707.9,3707.8,2.69701709]
[1760697484667,0.1758,3709.5,3708.3,2.69665094]
[1760697484836,0.42304409,3708.3,3708.2,2.87980374]
[1760697485161,0.1758,3709.5,3708.2,0.1831]
[1760697485364,0.423034,3708.8,3708.2,2.87981448]
[1760697485561,0.1758,3709.5,3708.2,2.87981687]
[1760697485763,0.6336,3709.4,3707.7,0.4328]
[1760697485927,0.6336,3709.4,3707.8,2.69700787]
[1760697485928,0.42301418,3708.8,3707.8,2.69700787]
[1760697486130,0.42301418,3708.8,3708.0,2.69681871]
[1760697486432,0.42301418,3708.8,3708.1,0.1831]
[1760697486759,0.42301418,3708.8,3708.7,2.6963626]
[1760697486961,0.1758,3710.0,3708.7,2.6963626]
[1760697486962,0.047005,3709.9,3708.7,0.4328]
[1760697487160,0.047005,3709.9,3708.2,2.69672617]
[1760697487362,0.42295729,3709.4,3708.2,0.02696726]
[1760697487666,0.42295729,3709.4,3708.9,2.69619902]
[1760697487969,0.42295729,3709.4,3709.0,2.69612671]
[1760697488134,0.42295729,3709.4,3708.9,2.69620977]
[1760697488329,0.4295,3710.4,3709.3,2.69591001]
[1760697488542,0.42292442,3709.6,3709.2,2.69598476]
[1760697488747,0.47650117,3710.4,3709.2,2.69598476]
[1760697488930,0.42290685,3709.6,3709.3,2.69591356]
[1760697489148,0.42290685,3709.6,3709.4,2.69580317]
[1760697489351,0.47650117,3710.4,3709.4,2.69580317]
[1760697489583,0.42289782,3709.6,3709.0,3.12887187]
[1760697489781,0.47650117,3710.4,3709.2,2.69599366]
[1760697489990,0.42291494,3709.6,3708.4,0.4328]
[1760697490192,0.42291494,3709.6,3708.8,2.69625471]
[1760697490361,0.1809,3709.7,3708.8,1.728]
[1760697490566,0.1809,3709.7,3708.7,2.69635081]
[1760697490567,0.42294096,3709.6,3708.7,1.728]
[1760697490750,0.42294096,3709.6,3708.0,2.69681543]
[1760697490751,0.4245,3709.5,3708.0,2.69681543]
[1760697491068,0.4245,3709.5,3707.8,0.4338]
[1760697491258,0.4245,3709.5,3708.2,2.69672617]
[1760697491457,0.04700287,3710.0,3709.1,2.69601902]
[1760697491668,0.04700287,3710.0,3708.9,2.69621218]
[1760697491846,0.04700287,3710.0,3707.9,1.728]
[1760697491847,0.42295683,3709.2,3707.8,0.6346]
[1760697492050,0.422,3709.3,3707.8,0.001]
[1760697492250,0.422,3709.3,3708.0,2.69685379]
[1760697492492,0.422,3709.3,3708.1,0.001]
[1760697492647,0.46999057,3709.4,3708.2,0.1831]
[1760697492958,0.46999057,3709.4,3708.4,2.69653401]
[1760697493165,0.46999057,3709.4,3708.1,0.001]
[1760697493166,0.422,3709.3,3708.1,0.001]
[1760697494183,0.422,3709.3,3708.1,2.88088664]
[1760697494493,0.422,3709.3,3708.1,0.1841]
[1760697494877,0.422,3709.3,3708.3,2.69658086]
[1760697495064,0.422,3709.3,3708.1,0.001]
[1760697495465,0.2095,3708.2,3708.1,0.001]
[1760697495666,0.6336,3709.2,3708.1,0.001]
[1760697495969,0.42304282,3709.0,3708.1,0.001]
[1760697496192,0.47005571,3709.0,3708.1,0.1841]
[1760697496595,0.42304282,3709.0,3708.1,0.1841]
[1760697496933,0.6336,3708.8,3708.1,0.001]
[1760697497378,0.6336,3708.6,3708.1,0.001]
[1760697497802,0.4199,3708.5,3708.1,0.001]
[1760697498009,0.84300331,3708.5,3708.1,0.001]
[1760697498307,0.4199,3708.4,3708.1,0.001]
[1760697498517,0.42310331,3708.5,3708.1,0.001]
[1760697498875,0.2116,3708.8,3708.1,0.001]
[1760697499073,0.4178,3708.4,3708.1,0.001]
[1760697499569,0.63464999,3708.8,3708.1,0.001]
[1760697500375,0.62464999,3708.8,3708.1,0.001]
[1760697501173,0.6336,3708.4,3708.1,0.001]
[1760697501580,0.04702148,3708.7,3708.1,0.001]
[1760697501781,0.42313095,3708.4,3708.1,0.001]
[1760697502183,0.42313095,3708.4,3708.3,2.69665345]
[1760697502404,0.42313095,3708.4,3708.3,5.50239932]
[1760697502712,0.0470053,3710.0,3708.4,1.728]
[1760697502874,0.0470053,3710.0,3708.7,1.728]
[1760697502875,0.42294453,3709.6,3708.7,1.728]
[1760697503211,0.156,3710.7,3709.5,0.1831]
[1760697503514,0.42287436,3709.9,3709.8,5.0571631]
[1760697503675,0.002,3711.1,3710.8,2.69482769]
[1760697503873,0.002,3711.1,3709.8,2.52295563]
[1760697503874,0.002,3711.1,3710.1,1.728]
[1760697504083,0.002,3711.1,3710.4,2.69506738]
[1760697504421,0.002,3711.1,3710.9,2.69469164]
[1760697504725,0.002,3711.1,3710.2,0.48707178]
[1760697504922,0.002,3711.1,3710.3,2.69519984]
[1760697505235,0.002,3711.1,3710.1,1.9185]
[1760697505414,0.002,3711.1,3710.3,1.728]
[1760697505597,0.002,3711.1,3710.3,2.69519984]
[1760697505930,0.002,3711.1,3710.2,3.1425093]
[1760697505931,0.002,3711.1,3710.2,2.1753]
[1760697506097,0.002,3711.1,3710.3,0.50611366]
[1760697506285,0.002,3711.1,3710.4,2.69511713]
[1760697506485,0.002,3711.1,3710.3,3.20130582]
[1760697507190,0.002,3711.1,3711.0,2.69469145]
[1760697507191,0.0012,3711.1,3711.0,2.69469145]
[1760697507386,0.0012,3711.1,3710.9,2.69474028]
[1760697507584,0.0012,3711.1,3711.0,2.69469145]
[1760697507786,0.0012,3711.1,3711.0,3.14199145]
[1760697508018,0.0012,3711.1,3711.0,4.86999145]
[1760697508186,0.0012,3711.1,3711.0,4.89693836]
[1760697508387,0.0012,3711.1,3711.0,4.86999145]
[1760697508615,0.0012,3711.1,3711.0,5.66685978]
[1760697509225,0.0012,3711.1,3711.0,6.43485978]
[1760697509442,0.0012,3711.1,3711.0,24.58001692]
[1760697509605,0.0012,3711.1,3711.0,32.04875092]
[1760697509785,0.0012,3711.1,3711.0,26.40848892]
[1760697510108,0.0012,3711.1,3711.0,27.04208892]
[1760697510611,0.002,3711.9,3711.4,3.32800103]
[1760697510793,0.002,3711.9,3711.4,7.09896477]
[1760697510996,0.002,3711.9,3711.4,5.63770103]
[1760697511394,0.002,3711.9,3711.4,9.36183403]
[1760697511601,0.002,3711.9,3711.4,5.63770103]
[1760697512012,0.002,3711.9,3711.4,8.55270103]
[1760697512915,0.002,3711.9,3711.4,5.63770103]
[1760697513122,0.2113,3711.9,3710.9,0.26947403]
[1760697513428,0.002,3711.9,3711.3,0.5817]
[1760697513594,0.002,3711.9,3711.4,0.02694401]
[1760697513797,0.002,3711.9,3711.4,4.44934504]
[1760697513997,0.002,3711.9,3711.4,4.89664504]
[1760697514216,0.2268,3711.9,3710.2,2.69526538]
[1760697514532,0.2268,3711.9,3711.0,2.69469145]
[1760697514714,0.2268,3711.9,3710.9,0.1344]
[1760697514905,0.2268,3711.9,3710.6,2.914]
[1760697515106,0.2268,3711.9,3711.1,2.69461074]
[1760697515307,0.2268,3711.9,3711.2,2.69453766]
[1760697515511,0.2268,3711.9,3710.9,2.69474203]
[1760697515710,0.2268,3711.9,3710.7,0.1344]
[1760697515916,0.64947818,3711.9,3710.6,2.69497006]
[1760697516121,0.4414,3711.4,3710.1,3.1035]
[1760697516322,0.64947818,3711.9,3710.5,2.69505457]
[1760697516323,0.42467818,3711.9,3710.5,2.69505457]
[1760697516519,0.002,3711.9,3711.4,3.32800103]
[1760697516703,0.002,3711.9,3711.4,8.71909039]
[1760697517030,0.002,3711.9,3711.4,8.08549039]
[1760697517230,0.002,3711.9,3711.4,5.17249039]
[1760697517394,0.002,3711.9,3711.4,6.25339039]
[1760697519430,1e-08,3711.9,3711.8,3.32771067]
[1760697519643,1e-08,3711.9,3711.8,32.34075872]
[1760697519840,0.002,3713.3,3713.2,4.4210949]
[1760697520047,0.002,3713.3,3713.2,1.728]
[1760697520206,0.002,3713.3,3713.2,4.4210949]
[1760697520407,0.002,3713.3,3712.8,0.1344]
[1760697520728,0.002,3713.3,3713.2,2.6930949]
[1760697520914,0.002,3713.3,3713.2,5.45840439]
[1760697521118,0.002,3713.3,3713.2,5.90570439]
[1760697521745,0.002,3713.7,3713.2,5.90570439]
[1760697521746,0.002,3713.7,3713.6,5.05440482]
[1760697522037,0.002,3713.7,3713.6,35.20404896]
[1760697522239,0.002,3713.7,3713.6,26.69326196]
[1760697522442,1e-08,3714.1,3714.0,3.3261148]
[1760697522741,1e-08,3714.1,3714.0,5.08103994]
[1760697523038,1e-08,3714.1,3714.0,8.12743994]
[1760697523203,1e-08,3714.1,3714.0,8.5478148]
[1760697523642,0.1408866,3716.7,3715.4,0.6336]
[1760697523807,0.1577,3719.0,3715.6,2.69134684]
[1760697523808,0.1637,3716.5,3715.6,2.69134684]
[1760697524003,0.1637,3716.5,3715.5,0.6336]
[1760697524222,0.2248,3716.8,3715.5,0.66051427]
[1760697524446,0.3968,3717.1,3715.5,0.66051427]
[1760697524447,0.3968,3717.1,3715.8,0.6336]
[1760697524654,0.3968,3717.1,3715.9,0.28089]
[1760697524814,0.3968,3716.9,3715.7,0.6336]
[1760697525149,0.3968,3716.9,3715.8,1.728]
[1760697525316,0.3968,3716.9,3715.5,0.6336]
[1760697525525,0.3968,3716.9,3715.5,2.3616]
[1760697525718,0.3968,3716.9,3715.7,0.6336]
[1760697525923,0.2203,3718.0,3715.3,0.1921]
[1760697525924,0.3968,3716.8,3715.3,0.1921]
[1760697526123,2.69055882,3716.7,3714.8,1.728]
[1760697526322,0.3968,3716.6,3714.6,0.1921]
[1760697526524,2.69070361,3716.5,3714.3,0.4473]
[1760697526755,0.3968,3716.4,3714.2,0.1921]
[1760697527236,0.3968,3716.4,3714.2,0.6394]
[1760697527427,0.3968,3716.3,3714.2,0.6394]
[1760697527625,0.3968,3716.2,3714.2,0.6394]
[1760697527929,0.3968,3716.1,3714.3,0.02692297]
[1760697528161,0.3968,3716.1,3714.6,1.728]
[1760697528356,0.3968,3716.1,3715.1,2.69164886]
[1760697528659,0.04689789,3716.2,3715.2,1.728]
[1760697528860,0.04689789,3716.2,3716.1,2.5553]
[1760697529068,0.04689789,3716.2,3716.1,1.728]
[1760697529374,0.2248,3716.8,3715.7,1.728]
[1760697529523,0.2248,3716.8,3716.2,1.728]
[1760697529729,0.2248,3716.8,3715.3,2.91]
[1760697530039,0.3968,3716.7,3715.4,1.728]
[1760697530238,0.3968,3716.7,3715.6,2.69133652]
[1760697530436,0.3968,3716.7,3716.1,2.69098246]
[1760697530642,0.2248,3716.8,3715.4,1.728]
[1760697530643,0.2248,3716.8,3716.2,2.69086875]
[1760697530843,0.224,3716.8,3716.2,2.69088615]
[1760697531048,0.224,3716.8,3715.9,2.6910691]
[1760697531049,0.224,3716.8,3716.1,2.69098785]
[1760697531264,0.04691104,3717.1,3717.0,5.05194167]
[1760697531441,0.1577,3719.0,3717.4,0.6336]
[1760697531641,0.4489,3718.9,3717.6,1.728]
[1760697531964,0.4489,3718.9,3717.1,0.02690269]
[1760697531965,0.1577,3719.0,3717.5,0.6336]
[1760697532175,0.4489,3719.5,3718.0,2.6895669]
[1760697532374,0.4461,3719.4,3718.1,2.68952665]
[1760697532540,0.04688244,3719.6,3718.1,1.728]
[1760697532739,0.4461,3719.3,3717.5,0.02689979]
[1760697533068,0.4461,3719.3,3717.1,0.02690269]
[1760697533269,0.4461,3719.3,3717.3,2.69012055]
[1760697533475,0.4461,3719.2,3716.1,0.4722]
[1760697533657,0.1616,3717.4,3716.4,2.6907517]
[1760697533824,0.1616,3717.4,3715.9,0.1921]
[1760697534027,0.1616,3717.4,3715.6,0.4722]
[1760697534028,0.4448,3717.3,3716.2,0.1344]
[1760697534243,0.4448,3717.3,3715.8,0.1344]
[1760697534691,0.4448,3717.3,3715.0,0.1937]
[1760697534988,0.1644,3715.9,3714.9,0.1344]
[1760697535139,0.1644,3715.9,3715.1,1.728]
[1760697535340,0.1644,3715.9,3714.9,0.1344]
[1760697535654,0.1644,3715.9,3714.6,0.1344]
[1760697535655,0.58661955,3715.9,3714.6,0.1344]
[1760697535849,0.4427,3715.8,3714.6,0.1344]
[1760697536055,0.42221955,3715.9,3715.8,2.6912105]
[1760697536273,0.161,3716.7,3715.8,0.40352105]
[1760697536446,0.161,3716.7,3715.4,0.6336]
[1760697536646,0.161,3716.7,3715.6,0.1344]
[1760697536871,0.161,3716.7,3715.9,2.69108062]
[1760697537073,0.161,3716.7,3716.2,2.6908977]
[1760697537276,0.04690947,3717.3,3716.4,2.69071893]
[1760697537484,0.04690947,3717.3,3716.0,0.1344]
[1760697537783,0.161,3716.5,3714.0,0.6643]
[1760697537985,2.69084842,3716.3,3714.2,2.88444555]
[1760697538289,0.161,3716.5,3715.3,2.69155183]
[1760697538448,0.161,3716.5,3715.4,0.26915518]
[1760697538796,0.161,3716.5,3715.5,4.41941571]
[1760697539075,0.161,3716.5,3715.2,0.1937]
[1760697539376,0.161,3716.5,3715.5,1.728]
[1760697539581,0.161,3716.5,3714.3,0.4722]
[1760697539793,0.446,3716.4,3715.1,1.728]
[1760697539947,0.42219075,3716.3,3714.4,1.728]
[1760697540150,0.42219075,3716.3,3715.1,0.1937]
[1760697540345,0.04691053,3717.6,3716.2,0.1945]
[1760697540789,0.42212781,3717.8,3716.5,0.6336]
[1760697540991,0.42212781,3717.8,3716.6,0.01765999]
[1760697541164,0.42212781,3717.8,3717.7,2.68983511]
[1760697541501,0.2162,3718.7,3717.6,2.88200701]
[1760697541651,1.08366623,3718.7,3717.1,0.1921]
[1760697541964,1.08366623,3718.7,3715.3,2.69151936]
[1760697541965,0.002,3716.8,3716.7,0.6336]
[1760697542156,0.002,3716.8,3716.7,5.51119685]
[1760697542777,0.002,3716.8,3716.7,1.728]
[1760697543468,0.002,3716.8,3716.7,4.87765882]
[1760697543650,0.002,3716.8,3716.7,14.37449752]
[1760697543958,0.1644,3719.0,3717.2,2.3616]
[1760697544158,0.1644,3719.0,3718.3,2.6894002]
[1760697544398,0.1644,3719.0,3717.5,0.6336]
[1760697544399,0.1644,3719.0,3717.1,1.728]
[1760697544549,0.4461,3718.9,3716.6,0.4591]
[1760697544757,0.1644,3719.0,3714.5,3.6679142]
[1760697544758,0.6336,3718.7,3716.8,1.728]
[1760697545062,0.1644,3719.0,3716.9,0.02690413]
[1760697545063,0.4461,3718.6,3716.9,0.02690413]
[1760697545425,0.2162,3716.9,3714.4,0.1937]
[1760697545579,0.4129,3716.8,3714.4,0.1937]
[1760697545774,0.4129,3716.8,3714.5,0.4591]
[1760697546150,0.6336,3716.7,3714.5,0.4591]
[1760697546348,0.2162,3716.9,3714.5,0.4591]
[1760697546349,0.4129,3716.6,3714.6,2.6920799]
[1760697546582,0.4129,3716.6,3714.7,0.4591]
[1760697546785,0.42216451,3716.2,3715.2,1.728]
[1760697546955,0.42216451,3716.2,3715.0,2.3616]
[1760697547151,0.42216451,3716.2,3715.2,0.1925]
[1760697547387,0.42216451,3716.2,3716.1,1.728]
[1760697547551,0.42216451,3716.2,3715.5,0.1344]
[1760697547758,0.4129,3716.4,3715.1,0.1344]
[1760697548087,0.42213287,3716.8,3716.3,0.1921]
[1760697548296,0.42213287,3716.8,3715.4,1.728]
[1760697548297,0.42213287,3716.8,3715.7,0.4591]
[1760697548601,0.42213287,3716.8,3716.0,0.1344]
[1760697548904,0.42213287,3716.8,3716.3,1.728]
[1760697549312,0.4435,3717.5,3716.1,1.728]
[1760697549501,0.4435,3717.5,3716.1,0.3265]
[1760697549707,0.42205536,3717.7,3716.9,1.728]
[1760697550015,0.42200051,3717.8,3717.0,0.1344]
[1760697550227,0.42200051,3717.8,3716.7,1.728]
[1760697550228,0.42200051,3717.8,3716.7,1.8624]
[1760697550382,0.4432,3717.8,3716.2,0.6336]
[1760697550581,0.4432,3717.8,3716.4,0.1344]
[1760697550582,0.86520576,3717.8,3716.4,0.1344]
[1760697550803,0.86520576,3717.8,3716.0,0.1344]
[1760697551008,2.68983511,3717.7,3715.8,0.1344]
[1760697551205,0.6336,3717.5,3714.7,0.4591]
[1760697551390,0.4432,3717.4,3715.0,0.4591]
[1760697551590,0.4432,3717.4,3714.3,0.001]
[1760697551591,0.6336,3717.3,3714.4,0.6528]
[1760697551792,2.69056052,3716.7,3714.4,3.34500319]
[1760697551983,0.6285,3716.6,3714.8,2.6919287]
[1760697552208,0.4407,3716.5,3714.6,2.69200756]
[1760697552418,0.4407,3716.5,3715.1,1.728]
[1760697552621,0.4407,3716.5,3714.4,0.6528]
[1760697552622,2.6908676,3716.3,3714.4,0.6528]
[1760697552786,0.4407,3716.2,3714.3,0.001]
[1760697552985,0.42223004,3715.9,3714.3,0.001]
[1760697553387,0.1671,3715.8,3714.3,0.4601]
[1760697553820,0.1671,3715.8,3714.6,2.69207502]
[1760697553985,0.1671,3715.8,3714.7,1.9972075]